Cogmind - Beta 16 @@@ ROGUE MODE // 2025.12.02 @ 16:16:02 Player: Skysub Result: Destroyed by HG-9DM(R) with Subdweller Beam Cannon Performance ------------- Evolutions (0) 0 Regions Visited (3) 600 Robots Destroyed (41) 205 Value Destroyed (1042) 1042 Prototype IDs (0) 0 Alien Tech Used (0) 0 Bonus (0) 0 TOTAL SCORE: 1847 Bonus ------- None Cogmind --------- Core Integrity 0/250 Matter 284/300 Energy 160/160 System Corruption 0% Temperature Cool (9) Movement Rolling (107) Ox1 Location -10/Subcaves Parts ------- > --- POWER (1) -------- Light Nuclear Core > --- PROPULSION (2) --- Wheel Subdweller Monowheel > --- UTILITY (2) ------ High-capacity Storage Unit Structural Scanner > --- WEAPON (2) ------- Light Assault Rifle Battle Cannon > --- INVENTORY (20) --- Subdweller Power Source Wheel Wheel Subdweller Monowheel Improved Heat Sink Large Storage Unit Makeshift Light Armor Plating Makeshift Light Armor Plating Subdweller Machine Gun Light Cannon Battle Cannon Grenade Launcher Grenade Launcher Dirty Datajack (20) Mining Laser Mining Claw Makeshift Axe Piercing Trap Peak State ------------ > --- POWER ------------ Light Nuclear Core > --- PROPULSION ------- Wheel Subdweller Monowheel > --- UTILITY ---------- High-capacity Storage Unit Structural Scanner > --- WEAPON ----------- Light Assault Rifle Battle Cannon > --- INVENTORY -------- Subdweller Power Source Wheel Wheel Subdweller Monowheel Improved Heat Sink Large Storage Unit Makeshift Light Armor Plating Makeshift Light Armor Plating Subdweller Machine Gun Light Cannon Battle Cannon Grenade Launcher Grenade Launcher Dirty Datajack Mining Laser Mining Claw Makeshift Axe Piercing Trap [Rating: 14] Favorites ----------- Power Ion Engine Engine Ion Engine Power Core Light Nuclear Core Propulsion Wheel Treads Light Treads Wheel Wheel Utility High-capacity Storage Unit Device Improved Heat Sink Storage High-capacity Storage Unit Weapon Assault Rifle Energy Cannon Beam Cannon Ballistic Gun Assault Rifle Ballistic Cannon Light Cannon Launcher Grenade Launcher Build | -11 -10 -10 -10 ------- Run | Yrd Mat Min Sub Slots Evolved . | . . . . Power . | . . . . Propulsion . | . . . . Utility . | . . . . Weapon . | . . . . Parts Attached 30 | 7 8 10 5 Power 4 | 1 . 2 1 Engine 3 | 1 . 2 . Core 1 | . . . 1 Reactor . | . . . . Propulsion 9 | 3 2 3 1 Treads 2 | 2 . . . Leg . | . . . . Wheel 7 | 1 2 3 1 Hover . | . . . . Flight . | . . . . Utility 5 | 1 3 . 1 Device 2 | . 1 . 1 Storage 3 | 1 2 . . Processor . | . . . . Hackware . | . . . . Protection . | . . . . Artifact . | . . . . Weapon 12 | 2 3 5 2 Energy Gun . | . . . . Energy Cannon 1 | . 1 . . Ballistic Gun 3 | 2 . 1 . Ballistic Cannon 4 | . . 2 2 Launcher 4 | . 2 2 . Special Weapon . | . . . . Impact Weapon . | . . . . Slashing Weapon . | . . . . Piercing Weapon . | . . . . Special Melee Weapon . | . . . . Unidentified Prototypes . | . . . . Parts Lost 13 | . 2 9 2 Power 3 | . . 2 1 Propulsion 5 | . 1 3 1 Utility 1 | . . 1 . Weapon 4 | . 1 3 . Highest Loss Streak 3 | . 1 3 1 To Critical Strikes . | . . . . Average Backups 12 | 3 10 12 15 Power 1 | . 1 1 1 Propulsion 1 | 1 2 1 2 Utility 1 | . . 3 3 Weapon 6 | . 6 7 7 Tool/Special . | . . . . Unused Backups 13 | . 1 . 12 Power 1 | . . . 1 Propulsion 3 | . . . 3 Utility 3 | . . . 3 Weapon 5 | . 1 . 4 Tool/Special 1 | . . . 1 Average Slot Usage (%) 92 | . 95 89 95 Engine 12 | . 14 12 10 Treads 7 | . 14 4 . Wheel 17 | . 10 20 24 Device 10 | . 13 7 12 Storage 14 | . 14 14 15 Energy Cannon 4 | . 2 7 . Ballistic Gun 14 | . 24 6 13 Ballistic Cannon 5 | . . 7 14 Launcher 2 | . . 5 . Peak Build Rating 14 | 6 10 10 14 Average Rating 8 | 4 9 8 10 On Entrance 5 | . 6 10 7 Avg Prop Armor Cover (%) 11 | 11 11 11 . Naked Turns . | . . . . Heaviest Build 67 | 14 51 52 67 Greatest Support 40 | 40 40 20 30 Greatest Overweight (x) 6 | . 5 5 6 Average Overweight (x) 2 | . 1 3 2 Largest Inventory Capacity 20 | 8 20 20 20 Average Capacity 16 | 7 12 20 20 Most Carried 20 | 6 15 15 20 Average Carried 12 | 3 10 12 16 Final Capacity 20 | 8 20 20 20 Final Carried 18 | 6 15 12 18 Class Distribution -------------------- 86% | Mutant 13% | Scavenger-Mutant Dominant Class ---------------- Mutant | -10/Materials Mutant | -10/Mines Scavenger-Mutant | -10/Subcaves Resources | -11 -10 -10 -10 ----------- Run | Yrd Mat Min Sub Matter Collected 1304 | 218 505 394 187 Remotely . | . . . . Salvage Created 1195 | 51 805 221 118 Parts 89 | 7 59 11 12 Haulers Intercepted 2 | . 2 . . Recyclers Shooed . | . . . . Parts Field Recycled . | . . . . Retrieved Matter . | . . . . Parts Self-Destructed 4 | . . . 4 Prevented . | . . . . Parts Restored . | . . . . Kills | -11 -10 -10 -10 ------- Run | Yrd Mat Min Sub Combat Hostiles Destroyed 39 | . 14 20 5 Guns 13 | . 8 2 3 Cannons 12 | . . 10 2 AOE 14 | . 6 8 . Classes Destroyed 9 | 1 6 1 1 Worker 2 | . 2 . . Builder 6 | . 5 1 . Tunneler 3 | 2 . 1 . Hauler 2 | . 2 . . Operator 1 | . 1 . . Watcher 3 | . 3 . . Grunt 19 | . 14 5 . Subdweller 5 | . . . 5 Assembled 15 | . . 15 . Best Kill Streak 8 | 2 6 8 3 Combat Bots Only 8 | . 4 8 3 Max Kills in Single Turn 4 | 1 4 2 1 Gunslinging . | . . . . Exploded 3 | . 3 2 . Melee . | . . . . Uniques/NPCs Destroyed . | . . . . Combat | -11 -10 -10 -10 -------- Run | Yrd Mat Min Sub Hostile Shots Fired 148 | . 38 91 19 Missed 42 | . 10 29 3 Hits 106 | . 28 62 16 Melee 7 | . . 7 . Projectile 99 | . 28 55 16 AOE 2 | . . . 2 Critical Strikes 2 | . . 2 . Part Disruptions 3 | . . 3 . Damage Taken 1751 | . 389 977 385 Core 272 | . 41 98 133 Absorbed by Shields . | . . . . Core Remaining (%) 100 | 100 . . . Volleys Fired 142 | 2 59 66 15 Largest 2 | 2 2 2 2 Hottest 90 | 40 80 90 53 Shots Fired 262 | 4 112 116 30 Gun 139 | 4 97 23 15 Cannon 104 | . 9 80 15 Launcher 19 | . 6 13 . Special . | . . . . Kinetic 194 | 4 97 63 30 Thermal 49 | . 9 40 . Explosive 19 | . 6 13 . Electromagnetic . | . . . . Robot Hit Streak 14 | 1 7 14 6 Robot Miss Streak 6 | 1 6 3 2 Penetration Max . | . . . . Secondary Targets . | . . . . Shots Hit Robots 163 | 2 70 70 21 Core Hits 99 | 2 43 43 11 Critical Kills . | . . . . Critical Parts Destroyed 2 | . 1 1 . Critical Strikes 5 | . 1 3 1 Destroy 3 | . 1 1 1 Blast 2 | . . 2 . Melee Attacks . | . . . . Impact . | . . . . Slashing . | . . . . Piercing . | . . . . Sneak Attacks . | . . . . Combat Hostiles . | . . . . Follow-up Attacks . | . . . . Damage Inflicted 3456 | 28 1376 1771 281 Guns 1063 | 28 798 157 80 Cannons 1095 | . 70 824 201 Explosions 1298 | . 508 790 . Melee . | . . . . Ramming . | . . . . Kinetic 1661 | 28 798 554 281 Thermal 563 | . 70 493 . Explosive 1232 | . 508 724 . Electromagnetic . | . . . . Impact . | . . . . Slashing . | . . . . Piercing . | . . . . Highest Corruption . | . . . . Average Corruption . | . . . . Corruption Purged . | . . . . Corruption Blocked . | . . . . Overload Shots . | . . . . Overflow Damage 50 | . . 50 . Projectiles 27 | . . 27 . Explosions 23 | . . 23 . Melee . | . . . . Knockbacks 7 | . . 6 1 Impact . | . . . . Kinetic 7 | . . 6 1 Secondary . | . . . . Self-Inflicted Damage 45 | . 23 22 . Shots 2 | . 1 1 . Rammed . | . . . . Targets Rammed . | . . . . Kicked . | . . . . Crushed . | . . . . Highest Temperature 72 | . . 72 . Average Temperature 15 | . . 15 . Received Heat Transfer 638 | . 204 368 66 Siege Activations . | . . . . Martial Activations . | . . . . Shielding Activations . | . . . . Robots Disrupted . | . . . . Combat Hostiles . | . . . . Robots Corrupted . | . . . . Combat Hostiles . | . . . . Parts Fried . | . . . . Impact Corruptions . | . . . . Robots Melted . | . . . . Combat Hostiles . | . . . . Parts Melted . | . . . . Heat Transferred 1186 | . 148 1038 . Parts Sabotaged . | . . . . Parts Stolen . | . . . . Parts Stripped . | . . . . Power Chain Reactions . | . . . . Alert | -11 -10 -10 -10 ------- Run | Yrd Mat Min Sub Maximum Alert Level . | . . . . Low Security (%) 100 | 100 100 100 . Level 1 . | . . . . Level 2 . | . . . . Level 3 . | . . . . Level 4 . | . . . . Level 5 . | . . . . High Security . | . . . . Max Security . | . . . . Peak Influence 163 | 5 163 114 . Initial 48 | . . 48 . Average 47 | 1 85 20 . Influence Increases 817 | 10 531 276 . Destroy 0b10 Robot/C 380 | . 280 100 . Destroy 0b10 Robot/NC 85 | 10 65 10 . Destroy Leader 100 | . 80 20 . Successful Hack 19 | . 19 . . Select Force Hacks 30 | . 30 . . Disable Machine 15 | . . 15 . Destroy Structure 98 | . 27 71 . Partial Spotted 30 | . 30 . . Lose Combat Pursuer 60 | . . 60 . Influence Decreases 817 | 10 406 401 . Entered New Map 77 | . . 77 . Time Decay 692 | 10 386 296 . Lost Part 48 | . 20 28 . Squads Dispatched 4 | . 4 . . Investigation 2 | . 2 . . Extermination . | . . . . Reinforcement 2 | . 2 . . Assault . | . . . . Garrison . | . . . . Intercept . | . . . . Searches Triggered . | . . . . Construction Impeded . | . . . . Haulers Reinforced . | . . . . Active Scanning Responses . | . . . . Cargo Convoy Interrupts . | . . . . Stealth | -11 -10 -10 -10 --------- Run | Yrd Mat Min Sub Distress Signals 1 | . 1 . . Communications Jammed . | . . . . Distress Signals . | . . . . Times Spotted 64 | . 22 36 6 Peak Tracking Total 16 | . 4 16 3 Tactical Retreats 9 | . . 9 . Traps | -11 -10 -10 -10 ------- Run | Yrd Mat Min Sub Traps Triggered 1 | . 1 . . Indirectly . | . . . . Trap Hack Attempts . | . . . . Triggered . | . . . . Disarmed . | . . . . Reprogrammed . | . . . . Reused . | . . . . Traps Extracted . | . . . . Installed . | . . . . Triggered . | . . . . Most Traps Carried 1 | . . . 1 Machines | -11 -10 -10 -10 ---------- Run | Yrd Mat Min Sub Machines Disabled 1 | . . 1 . Max in Single Turn 1 | . . 1 . Machines Repaired . | . . . . Machines Dismantled . | . . . . Machines Sabotaged . | . . . . Overloaded Fab Kills . | . . . . Hacking | -11 -10 -10 -10 --------- Run | Yrd Mat Min Sub Machines Accessed 8 | . 8 . . Terminals 6 | . 6 . . Fabricators . | . . . . Repair Stations . | . . . . Recycling Units 2 | . 2 . . Scanalyzers . | . . . . Garrison Access . | . . . . Total Hacks 23 | . 23 . . Successful 14 | . 14 . . Failed 9 | . 9 . . Catastrophic 1 | . 1 . . Database Lockouts . | . . . . Manual 17 | . 17 . . Terminals 20 | . 20 . . Fabricators . | . . . . Repair Stations . | . . . . Recycling Units 3 | . 3 . . Scanalyzers . | . . . . Garrison Access . | . . . . Terminal Hacks 3 | . 3 . . Robot Analysis 1 | . 1 . . Terminal Index 1 | . 1 . . Registered Components 1 | . 1 . . Fabricator Hacks . | . . . . Repair Station Hacks . | . . . . Recycling Unit Hacks 2 | . 2 . . Report Inventory 2 | . 2 . . Scanalyzer . | . . . . Garrison Access Hacks . | . . . . Unauthorized Hacks 9 | . 9 . . Terminals 8 | . 8 . . Botnet 2 | . 2 . . Operators 1 | . 1 . . Skim 5 | . 5 . . Fabricators . | . . . . Repair Stations . | . . . . Recycling Units 1 | . 1 . . Tunnel 1 | . 1 . . Scanalyzers . | . . . . Garrison Access . | . . . . Data Cores Recovered . | . . . . Used . | . . . . Hacking Detections 5 | . 5 . . Full Trace Events . | . . . . Feedback Events . | . . . . Feedback Blocked . | . . . . Robot Schematics Acquired . | . . . . Robots Built . | . . . . Authchips . | . . . . Time . | . . . . Total Robot Build Rating . | . . . . Part Schematics Acquired . | . . . . Parts Built . | . . . . Authchips . | . . . . Time . | . . . . Total Part Build Rating . | . . . . Part Studies Acquired . | . . . . Parts Repaired . | . . . . Time . | . . . . Parts Recycled . | . . . . Recycled Matter . | . . . . Retrieved Matter . | . . . . Retrieved Components . | . . . . Parts Scanalyzed . | . . . . Part Schematics Acquired . | . . . . Parts Damaged . | . . . . Bothacking | -11 -10 -10 -10 ------------ Run | Yrd Mat Min Sub Used RIF Installer . | . . . . Robots Hacked . | . . . . Non-combat . | . . . . Combat . | . . . . Robot Hacks Applied . | . . . . Relay Couplers Released . | . . . . Fabnet Peak Effective % . | . . . . Robots Rewired . | . . . . Allies Hacked . | . . . . Hacks Repelled . | . . . . Allies | -11 -10 -10 -10 -------- Run | Yrd Mat Min Sub Total Allies . | . . . . Largest Group . | . . . . Highest-Rated Group . | . . . . Highest-Rated Ally . | . . . . Total Orders . | . . . . Ally Attacks . | . . . . Total Damage . | . . . . Kills . | . . . . Allies Corrupted . | . . . . Allies Melted . | . . . . Intel | -11 -10 -10 -10 ------- Run | Yrd Mat Min Sub Active Infowar (turns) 370 | . . . 370 Structural 370 | . . . 370 Robot Analysis Total 1 | . 1 . . Derelict Logs Recovered 1 | . . 1 . Drone Launches . | . . . . Drone Recoveries . | . . . . Exploration | -11 -10 -10 -10 ------------- Run | Yrd Mat Min Sub Turns Passed 2763 | 120 1009 1205 429 Spaces Moved 1664 | 66 640 670 288 Core 4 | 4 . . . Treads 148 | 59 89 . . Legs . | . . . . Wheels 1512 | 3 551 670 288 Hover . | . . . . Flight . | . . . . Fastest Speed 50 | 50 95 110 107 Average Speed 125 | 149 123 127 118 Slowest Speed 240 | 160 240 155 170 Overloaded Moves . | . . . . Propulsion Burnouts . | . . . . Robots Hopped . | . . . . Potential Cave-ins . | . . . . Cave-ins Triggered . | . . . . Exploration Rate (%) 56 | 5 97 95 28 Regions Visited 3 Branch Regions 2 Pre-discovered Areas 4 | . 4 . . Known Exits Taken 1 | . . 1 . Unknown Exits Taken 2 | 1 1 . . Scrap Searched 9 | . . 1 8 Spaces Dug 11 | . . 11 . Terrain Destroyed 104 | . 24 80 . Melee . | . . . . Projectile . | . . . . AOE 104 | . 24 80 . Terrain Rammed . | . . . . Walls Destroyed . | . . . . Machines Disabled . | . . . . Actions | -11 -10 -10 -10 --------- Run | Yrd Mat Min Sub Total 2080 | 80 744 906 350 Wait 196 | . 19 151 26 Move 1661 | 65 639 669 288 Hop . | . . . . Pick Up 30 | 5 13 2 10 Fast Attach 11 | 7 1 3 . Attach 12 | . 2 7 3 Detach 3 | 1 . 2 . Swap 18 | . 7 6 5 Drop 7 | . 4 . 3 Fire 142 | 2 59 66 15 Melee . | . . . . Ram . | . . . . Kick . | . . . . Crush . | . . . . Escape Stasis . | . . . . Rewire . | . . . . Trap . | . . . . Miscellaneous . | . . . . Route ------- -11/Scrapyard -10/Materials (discovered 6 exits: *Mat x3 / [*Min x2] / Sub) -10/Mines (discovered 4 exits: *Mat x2 / [*Exi] / *Sub) -10/Subcaves (discovered 2 exits: [*Mat x2]) History --------- Turn | Location | Event 4 | -11/Scrapyard | Discovered new exit (range 15) 121 | -11/Scrapyard | Entered Materials 122 | -10/Materials | Met a group of wandering Federalists 219 | -10/Materials | Lost 5 allies 222 | -10/Materials | Discovered new exit (range 4) 305 | -10/Materials | Discovered new exit (range 15) 313 | -10/Materials | Build established: Mutant 419 | -10/Materials | Discovered new exit (range 16) 617 | -10/Materials | Loaded intel: 13 trap records 656 | -10/Materials | Learned Materials trap positions 683 | -10/Materials | Identified exit to Subcaves 702 | -10/Materials | Identified exit to Materials 704 | -10/Materials | Learned location of Recycling (-7) 705 | -10/Materials | Learned location of 2 exits from Materials 706 | -10/Materials | Learned Materials trap positions 732 | -10/Materials | Learned 2 Mines zone layouts 1130 | -10/Materials | Entered Mines 1479 | -10/Mines | Deemed a non-threat by the Exiles lab entrance 1479 | -10/Mines | Discovered new exit (range 5) 1545 | -10/Mines | Learned Materials stockpile data 1707 | -10/Mines | Assembled infested the area 1793 | -10/Mines | Destroyed 8 combat bots 1847 | -10/Mines | Lost 3 parts (1p1u1w) 1913 | -10/Mines | Discovered exit to Materials (range 9) 2068 | -10/Mines | Core integrity fell below 50% 2325 | -10/Mines | Discovered exit to Subcaves (range 9) 2335 | -10/Mines | Entered Subcaves 2336 | -10/Subcaves | Approached by a straggling Scientist 2364 | -10/Subcaves | Shifting Twisted Machinery released Flamer 2365 | -10/Subcaves | Shifting Twisted Machinery released Flamer 2418 | -10/Subcaves | Disturbed a concealed Subdweller 2423 | -10/Subcaves | Core integrity fell below 20% 2664 | -10/Subcaves | Ambushed by Subdwellers from Twisted Machinery 2702 | -10/Subcaves | Discovered new exit (range 9) 2703 | -10/Subcaves | Discovered new exit (range 10) 2764 | -10/Subcaves | Destroyed by HG-9DM(R) with Subdweller Beam Cannon Last Messages --------------- 02521_ Acquired 20 matter. 02527_ Dropped Grenade Launcher. 02529_ Acquired Lgt. Cannon. 02537_ Subatomizers dissect the Sub. Optics. 0F-FXT(c): "I think it's somewhere west of here" 02626_ Acquired 20 matter. 0F-FXT(c): "I think it's somewhere southwest of here" 02664_ HS-3YK(R) emerges from the Twisted Machinery. 02664_ QQ-6LD(R) suffers critical hit (Destroy). 02665_ 0F-FXT(c) destroyed. 02667_ HS-3YK(R) destroyed. 02667_ Lgt. Ion Engine destroyed. 02672_ QQ-6LD(R) affixes Scrap Shield Fragment to Scrap Shield. 02675_ QQ-6LD(R) knocked back. 02678_ QQ-6LD(R) destroyed. 02683_ Acquired 3 matter. 02684_ Acquired 18 matter. 02685_ Acquired 7 matter. 02686_ Acquired 3 matter. 02702_ EXIT=FOUND Map ----- +----------------------------------------------------+ | ?????????????????????????????????????????????????? | | ?????????????????????????????????????????????????? | | ?????????????????????????????????????????????????? | | ?????????????????????????????????????????????????? | | ?????????????????????????????????????????????????? | | ?????????????????????????????????????????????????? | | ?????????????????????????????????????????????????? | | ?????????????????????????????????????????????????? | | ?????????????????????????????????????????????????? | | ?????????????????????#####???????????????????????? | | ??????????????????#########??#####???????????????? | | ?????????????????###### ##########??????????????? | | ?????????????????### #### ###??????????????? | | ????????????????? ##??????????????? | | ???????????????????? ###??????????????? | | ?????????????????????? ###???????????????? | | ??????????????????????## ###???????????????? | | ???????????? ?????????## ^ ##???????????????? | | ???????????? ????????### ###???????????????? | | ???????????? ???????##### ###????????????????? | | ????????????? ??????##### ###????????????????? | | ??????????????? ???????### ###????????????????? | | ????????????????? ????### ##????????????????? | | ?????????????????## #### ##????????????????? | | ?????????????????## #### ####????????????????? | | ?????????????????### #@ ###????????????????? | | ??????????????????## R #####?????????????? | | ??????????????????## ######????????????? | | ??????????????????#### #### ## ###????????????? | | ??????????????????########## ##????????????? | | ????????????????????####?#### ###########????? | | ??????????????????????????###### ############???? | | ???????????????????????????###### ## ###???? | | ??????????????????????????????### ##???? | | ?????????????????????????????##### ##???? | | ?????????????????????????????###### ##???? | | ????????????????????????????### # # ##???? | | ????????????????????????????### < ## ##???? | | ????????????????????????????## # # #### ###???? | | ???????????????????????????#### #### ########???? | | ???????????????????????????#### ### ##????????? | | ????????????????????????? ### ## ###????????? | | ???????????????????????? #$#" """ ###????????? | | ????????????????????????? " " #####??????? | | ??????????????????????????"##" "# ######?????? | | ??????????????????????????## ###"###?????? | | ??????????????????????????#### "" ""##?????? | | ?????????????????????????? ## "#""### "##?????? | | ???????????????????????## "####### "###????? | | ???????????????????????### ######## ####???? | +----------------------------------------------------+ Best States ------------- Heat Dissipation 39 Energy Generation 14 Energy Capacity 250 Matter Stores 300 Matter Capacity 300 Sight Range 16 Terrain Scan Density 10 Evasion (%) 44 Recoil Reduction 2 Item Schematics ----------------- None Robot Schematics ------------------ None Fabricated ------------ Nothing Repaired ---------- Nothing Studied --------- None Alien Tech Used ----------------- None Achievements -------------- None Challenges ------------ None Game ------ Seed HeavyTransmissionArmor Manual? 0 Play Time 00:17:49 Cumulative 302.8 hours Start 2025.12.02 @ 16:00:11 End 2025.12.02 @ 16:16:02 Sessions 1 Manual Loads 0 Difficulty Rogue Special Mode None Game No. 376 Rogue 376 Adventurer 0 Explorer 0 Win Type - Total 21 Types 13/0/3/1/1/0/1/1/0/1 Lore% 78 Gallery% 76 Achievement% 60 Wizard Run 0 Options --------- Layout 1 ASCII 0 Keyboard 1 Movement Numpad Keybinds 0 Fullscreen 2 Font 32/SmallcapsGlow Map View 77x35 Zoom Use 0% Tactical HUD 1 Map Filters NONE Filters NONE Steam 1 RUN: 58099656-71ba-41d1-95c5-26ec9459e581